Workbook

Sheet бюджет
A1: Сводные данные по бюджету времени (в неделях)
A2: 19.02.10 ТЕХНОЛОГИЯ ПРОДУКЦИИ ОБЩЕСТВЕННОГО ПИТАНИЯ (3 года 10 месяцев)
A3: Курсы | B3: Обучение по дисциплинам и междисциплинарным курсам | C3: Учебная практика | D3: Производственная практика | F3: Промежуточная аттестация | G3: Государственная итоговая аттестация | H3: Каникулы | I3: Всего
D4: по профилю специальности | E4: преддипломная
E5: (для СПО)
A6: 1 | B6: 2 | C6: 3 | D6: 4 | E6: 5 | F6: 6 | G6: 7 | H6: 8 | I6: 9
A7: I курс | B7: 41 | C7: 0 | D7: 0 | E7: 0 | F7: 0 | G7: 0 | H7: 11 | I7: =H7+G7+F7+E7+D7+C7+B7 -> 52
A8: II курс | B8: 34 | C8: 5 | D8: 2 | E8: 0 | F8: 0 | G8: 0 | H8: 11 | I8: =H8+G8+F8+E8+D8+C8+B8 -> 52
A9: III курс | B9: 27 | C9: 8 | D9: 3 | E9: 0 | F9: 3 | G9: 0 | H9: 11 | I9: =H9+G9+F9+E9+D9+C9+B9 -> 52
A10: IV курс | B10: 19 | C10: 7 | D10: 3 | E10: 4 | F10: 2 | G10: 6 | H10: 2 | I10: =H10+G10+F10+E10+D10+C10+B10 -> 43
A11: Всего | B11: =B10+B9+B8+B7 -> 121 | C11: 20 | D11: 8 | E11: 4 | F11: 5 | G11: 6 | H11: =H10+H9+H8+H7 -> 35 | I11: =H11+G11+F11+E11+D11+C11+B11 -> 199

Sheet титульный лист
A1: Утверждаю
A2: И.о.директора ГАПОУ РК
A3: «Северный колледж»
A4: ________________
B5: приказ № 222/од
A6: 12 августа 2023 г.
A7: УЧЕБНЫЙ ПЛАН
A8: основной профессиональной образовательной программы СПО ППССЗ
A9: государственного автономного профессионального образовательного учреждения образования Республики Карелия
A10: «Северный колледж»
A11: по специальности 43.02.15 ПОВАРСКОЕ И КОНДИТЕРСКОЕ ДЕЛО
A12: по программе базовой подготовки
A14: Квалификация: техник-технолог
A16: форма обучения - очная
A17: нормативный срок обучения – 3 года 10 месяцев
A18: на базе основного общего образования с получением среднего общего образования
A19: профиль получаемого профессионального образования естественнонаучный

Sheet Учебный план
A1: План учебного процесса основная профессиональная образовательная программа СПО ППССЗ по специальности 43.02.15 ПОВАРСКОЕ И КОНДИТЕРСКОЕ ДЕЛО
A2: Индекс | B2: Наименование циклов, дисциплин, профессиональных модулей, МДК, практик | C2: Формы промежуточной аттестации / семестр | D2: Учебная нагрузка обучающихся (час.) | I2: Распределение обязательной нагрузки по курсам и семестрам (час. в семестр)
D6: максимальная | E6: Самостоятельная работа | F6: Обязательная аудиторная | I6: I курс (2023/2024 уч. год) | K6: II курс (2024/2025 уч. год) | M6: III курс (2025/2026 уч. год) | O6: IV курс (2026/2027 уч. год)
F7: всего занятий | G7: в т. ч. | I7: 1 семестр | J7: 2 семестр | K7: 3 семестр | L7: 4 семестр | M7: 5 семестр | N7: 6 семестр | O7: 7 семестр | P7: 8 семестр
F8: =SUM(I10:P10) -> 5940 | G8: лаб. и практ. занятий | H8: курсовых работ | I8: сем. | J8: сем. | K8: сем. | L8: сем. | M8: сем. | N8: сем. | O8: сем. | P8: сем.
I9: 17 | J9: 24 | K9: 17 | L9: 24 | M9: 17 | N9: 24 | O9: 17 | P9: 25
I10: =I9*36 -> 612 | J10: 864 | K10: 612 | L10: 864 | M10: 612 | N10: 864 | O10: 612 | P10: 900
I11: нед | J11: нед | K11: нед | L11: нед | M11: нед | N11: нед | O11: нед | P11: нед
A12: 1 | B12: 2 | C12: 3 | D12: 4 | E12: 5 | F12: 6 | G12: 7 | H12: 8 | I12: 9 | J12: 10 | K12: 11 | L12: 12 | M12: 13 | N12: 14 | O12: 15 | P12: 16
D13: =D14+D31+D37+D51+D90+D101 -> 6489 | E13: =E14+E31+E37+E51+E90+E101 -> 1809 | F13: =F14+F31+F37+F41+F51+F90+F99+F100+F101 -> 5940 | G13: =G14+G31+G37+G51+G90+G101 -> 1824 | H13: =H14+H31+H37+H51+H90+H101 -> 60 | I13: =I14+I31+I37+I41+I51+I90+I99+I100+I101 -> 612 | J13: 864 | K13: 612 | L13: 864 | M13: 612 | N13: 864 | O13: 612 | P13: 900 | Q13: =SUM(I13:P13) -> 5940
A14: О.00 | B14: Общеобразовательный цикл | D14: =SUM(D15:D29) -> 2214 | E14: =SUM(E16:E29) -> 738 | F14: =SUM(F16:F29) -> 1476 | G14: 663 | H14: 0 | I14: =SUM(I16:I29) -> 566 | J14: =SUM(J16:J29) -> 725 | K14: 91 | L14: 94 | M14: 0 | N14: 0 | O14: 0 | P14: 0
A15: Общие
A16: ОУД.01 | B16: Русский язык | C16: Э/2 | D16: =SUM(E16:F16) -> 108 | E16: =F16/2 -> 36 | F16: =SUM(I16:P16) -> 72 | G16: 30 | I16: 30 | J16: 42
A17: ОУД.02 | B17: Литература | C17: ДЗ/2 | D17: 162 | E17: 54 | F17: =SUM(I17:P17) -> 108 | G17: 50 | I17: 50 | J17: 58
A18: ОУД.03 | B18: Иностранный язык | C18: ДЗ/2 | D18: 108 | E18: 36 | F18: 72 | G18: 72 | I18: 42 | J18: 30
A19: ОУД.04 | B19: Математика | C19: Э/3 | D19: 510 | E19: 170 | F19: 340 | G19: 74 | I19: 85 | J19: 70 | K19: 91 | L19: 94
A20: ОУД.05 | B20: История | C20: ДЗ/2 | D20: 204 | E20: 68 | F20: 136 | G20: 40 | I20: 65 | J20: 71
A21: ОУД.06 | B21: Физическая культура | C21: ДЗ/2 | D21: 108 | E21: 36 | F21: 72 | G21: 66 | I21: 36 | J21: 36
A22: ОУД.07 | B22: ОБЖ | C22: ДЗ/2 | D22: 102 | E22: 34 | F22: 68 | G22: 43 | I22: 34 | J22: 34
A23: ОУД.08 | B23: Информатика | C23: ДЗ/2 | D23: 162 | E23: =F23/2 -> 54 | F23: 108 | G23: 80 | I23: 48 | J23: 60
A24: ОУД.08 | B24: Индивидуальный проект | C24: ДЗ/2 | D24: 48 | E24: 16 | F24: 32 | G24: 32 | J24: 32
A25: ОУД.09 | B25: Физика | C25: Э/2 | D25: 270 | E25: 90 | F25: 180 | G25: 76 | I25: 90 | J25: 90
A26: ОУД.10 | B26: Химия | C26: Э/2 | D26: 108 | E26: 36 | F26: 72 | G26: 24 | J26: 72
A27: ОУД.11 | B27: Обществознание | C27: ДЗ/2 | D27: 108 | E27: 36 | F27: 72 | G27: 24 | I27: 50 | J27: 22
A28: ОУД.12 | B28: География | C28: ДЗ/2 | D28: 108 | E28: 36 | F28: 72 | G28: 28 | J28: 72
A29: ОУД.13 | B29: Биология | C29: ДЗ/2 | D29: 108 | E29: 36 | F29: 72 | G29: 24 | I29: 36 | J29: 36
A30: Обязательная часть учебных циклов ППССЗ
A31: ОГСЭ.00 | B31: Общий гуманитарный и социально-экономический цикл | D31: =SUM(D32:D36) -> 648 | E31: =SUM(E32:E36) -> 216 | F31: =SUM(F32:F36) -> 432 | G31: =SUM(G32:G36) -> 361 | H31: =SUM(H32:H35) -> 0 | I31: =SUM(I32:I36) -> 0 | J31: =SUM(J32:J36) -> 0 | K31: 91 | L31: 113 | M31: 78 | N31: 88 | O31: 30 | P31: 32
A32: ОГСЭ.01 | B32: Основы философии | C32: ДЗ/6 | D32: =SUM(E32:F32) -> 54 | E32: =F32/2 -> 18 | F32: =SUM(I32:P32) -> 36 | G32: 19 | M32: 36
A33: ОГСЭ.02 | B33: История | C33: ДЗ/3 | D33: =SUM(E33:F33) -> 63 | E33: =F33/2 -> 21 | F33: =SUM(I33:P33) -> 42 | G33: 8 | K33: 19 | L33: 23
A34: ОГСЭ.03 | B34: Иностранный язык в профессиональной деятельности | C34: ДЗ/6 | D34: =SUM(E34:F34) -> 243 | E34: =F34/2 -> 81 | F34: 162 | G34: 162 | K34: 36 | L34: 52 | M34: 20 | N34: 54
A35: ОГСЭ.04 | B35: Физическая культура | C35: ДЗ/7 | D35: =SUM(E35:F35) -> 240 | E35: 80 | F35: 160 | G35: 158 | K35: 36 | L35: 38 | M35: 22 | N35: 34 | O35: 30
A36: ОГСЭ.05 | B36: Психология общения | C36: ДЗ/6 | D36: =SUM(E36:F36) -> 48 | E36: 16 | F36: 32 | G36: 14 | P36: 32
A37: ЕН.00 | B37: Математический и общий естественнонаучный цикл | D37: =SUM(D38:D40) -> 270 | E37: 90 | F37: =SUM(F38:F40) -> 180 | G37: 53 | H37: 0 | I37: =SUM(I38:I40) -> 0 | J37: =SUM(J38:J40) -> 0 | K37: 35 | L37: 35 | M37: 60 | N37: 0 | O37: 0 | P37: 50
A38: ЕН.01 | B38: Математика | C38: ДЗ/5 | D38: =SUM(E38:F38) -> 90 | E38: =F38/2 -> 30 | F38: =SUM(I38:P38) -> 60 | G38: 22 | M38: 60
A39: ЕН.02 | B39: Экологические основы природопользования | C39: ДЗ/8 | D39: =SUM(E39:F39) -> 75 | E39: =F39/2 -> 25 | F39: =SUM(I39:P39) -> 50 | G39: 10 | P39: 50
A40: ЕН.03 | B40: Химия | C40: Э/3 | D40: =SUM(E40:F40) -> 105 | E40: =F40/2 -> 35 | F40: =SUM(I40:P40) -> 70 | G40: 21 | K40: 35 | L40: 35
A41: ОП.00 | B41: Общепрофессиональные дисциплины | D41: =SUM(D42:D50) -> 873 | E41: =SUM(E42:E50) -> 291 | F41: =SUM(F42:F50) -> 582 | G41: =SUM(G42:G50) -> 172 | H41: 0 | I41: =SUM(I42:I50) -> 0 | J41: =SUM(J42:J50) -> 103 | K41: 123 | L41: 36 | M41: 54 | N41: 94 | O41: 56 | P41: 116
A42: ОП.01 | B42: Микробиология, санитария и гигиена в пищевом производстве | C42: ДЗ/1 | D42: =SUM(E42:F42) -> 72 | E42: =F42/2 -> 24 | F42: =SUM(I42:P42) -> 48 | G42: 10 | J42: 48
A43: ОП.02 | B43: Физиология питания | C43: ДЗ/3 | D43: 117 | E43: 39 | F43: 78 | G43: 12 | K43: 42 | L43: 36
A44: ОП.03 | B44: Организация хранения и контроль запасов и сырья | C44: Э/3 | D44: 138 | E44: 46 | F44: 92 | G44: 20 | J44: 32 | K44: 60
A45: ОП.04 | B45: Информационные технологии в профессиональной деятельности | C45: Э/7 | D45: 108 | E45: 36 | F45: 72 | G45: 34 | O45: 20 | P45: 52
A46: ОП.05 | B46: Метрология и стандартизация | C46: ДЗ/8 | D46: 48 | E46: 16 | F46: 32 | G46: 10 | M46: 32
A47: ОП. 06 | B47: Правовые основы профессиональной деятельности | C47: ДЗ/5 | D47: 96 | E47: 32 | F47: 64 | G47: 8 | P47: 64
A48: ОП. 07 | B48: Основы экономики, менеджмента и маркетинга | C48: Э/4 | D48: 126 | E48: 42 | F48: 84 | G48: 38 | M48: 22 | N48: 62
A49: ОП. 08 | B49: Охрана труда | C49: ДЗ/3 | D49: 66 | E49: 22 | F49: 44 | G49: 10 | J49: 23 | K49: 21
A50: ОП. 09 | B50: Безопасность жизнедеятельности | C50: ДЗ/7 | D50: 102 | E50: 34 | F50: 68 | G50: 30 | N50: 32 | O50: 36
A51: ПМ.00 | B51: Профессиональный цикл | D51: =D52+D57+D62+D67+D72+D77+D81 -> 2955 | E51: =E52+E57+E62+E67+E72+E77+E81 -> 631 | F51: =F52+F57+F62+F67+F72+F77+F81+F86 -> 2462 | G51: =G52+G57+G62+G67+G72+G77+G81 -> 628 | H51: =H52+H57+H62+H67+H72+H77+H81 -> 60 | I51: =I52+I57+I62+I67+I72+I77+I81+I86 -> 0 | J51: 0 | K51: 156 | L51: 530 | M51: 402 | N51: 646 | O51: 440 | P51: 288
A52: ПМ.01 | B52: Организация и ведение процессов приготовления и подготовки к реализации полуфабрикатов для блюд, кулинарных изделий сложного ассортимента | C52: Э(к)/5 | D52: =SUM(D53:D56) -> 510 | E52: 110 | F52: =SUM(F53:F56) -> 400 | G52: 100 | H52: 0 | I52: =SUM(I53:I56) -> 0 | J52: =SUM(J53:J56) -> 0 | K52: 0 | L52: 256 | M52: 144 | N52: 0 | O52: 0 | P52: 0
A53: МДК.01.01 | B53: Организация процессов приготовления, подготовки к реализации кулинарных полуфабрикатов | C53: Э/5 | D53: =SUM(E53:F53) -> 90 | E53: =F53/2 -> 30 | F53: =SUM(I53:P53) -> 60 | G53: 20 | L53: 60
A54: МДК.01.02 | B54: Процессы приготовления, подготовки к реализации кулинарных полуфабрикатов | D54: =SUM(E54:F54) -> 240 | E54: =F54/2 -> 80 | F54: 160 | G54: 80 | L54: 52 | M54: 108
A55: УП.01 | B55: Учебная практика | C55: ДЗ/5 | D55: =SUM(E55:F55) -> 144 | F55: 144 | L55: 144
A56: ПП.01 | B56: Производственная практика | D56: =SUM(E56:F56) -> 36 | F56: 36 | M56: 36
A57: ПМ.02 | B57: Организация и ведение процессов приготовления, оформления и подготовки к реализации горячих блюд, кулинарных изделий, закусок сложного ассортимента с учетом потребностей различных категорий потребителей, видов и форм обслуживания | C57: Э(к)/6 | D57: =SUM(D58:D61) -> 608 | E57: =SUM(E58:E61) -> 120 | F57: 488 | G57: =SUM(G58:G61) -> 190 | H57: 30 | I57: =SUM(I58:I61) -> 0 | J57: =SUM(J58:J61) -> 0 | K57: 0 | L57: 0 | M57: 0 | N57: 488 | O57: 0 | P57: 0
A58: МДК.02.01 | B58: Организация процессов приготовления, подготовки к реализации горячих блюд, кулинарных изделий, закусок сложного ассортимента | C58: Э/5 | D58: =SUM(E58:F58) -> 120 | E58: 40 | F58: 80 | G58: 40 | H58: 30 | N58: 80
A59: МДК.02.02 | B59: Процессы приготовления, подготовки к реализации горячих блюд, кулинарных изделий, закусок сложного ассортимента | D59: =SUM(E59:F59) -> 308 | E59: 80 | F59: 228 | G59: 150 | N59: 228
A60: УП.02 | B60: Учебная практика | C60: ДЗ/6 | D60: =SUM(E60:F60) -> 144 | F60: 144 | N60: 144
A61: ПП.02 | B61: Производственная практика | D61: =SUM(E61:F61) -> 36 | F61: 36 | N61: 36
A62: ПМ.03 | B62: Организация и ведение процессов приготовления, оформления и подготовки к реализации холодных блюд, кулинарных изделий, закусок сложного ассортимента с учетом потребностей различных категорий потребителей, видов и форм обслуживания | C62: Э(к)/6 | D62: =SUM( D63:D66) -> 339 | E62: =SUM( E63:E66) -> 65 | F62: 274 | G62: =SUM(G63:G66) -> 58 | H62: =H63+H65+H66 -> 0 | I62: =SUM(I63:I66) -> 0 | J62: =SUM(J63:J66) -> 0 | K62: 34 | L62: 30 | M62: 174 | N62: 36 | O62: 0 | P62: 0
A63: МДК.03.01 | B63: Организация процессов приготовления, подготовки к реализации холодных блюд, кулинарных изделий, закусок сложного ассортимента | C63: Э/6 | D63: =SUM(E63:F63) -> 51 | E63: =F63/2 -> 17 | F63: =SUM(I63:P63) -> 34 | G63: 12 | K63: 34
A64: МДК.03.02 | B64: Процессы приготовления, подготовки к реализации холодных блюд, кулинарных изделий, закусок сложного ассортимента | D64: =SUM(E64:F64) -> 144 | E64: =F64/2 -> 48 | F64: =SUM(I64:P64) -> 96 | G64: 46 | L64: 30 | M64: 66
A65: УП.03 | B65: Учебная практика | C65: ДЗ/6 | D65: =SUM(E65:F65) -> 108 | F65: =SUM(I65:P65) -> 108 | M65: 108
A66: ПП.03 | B66: Производственная практика | D66: =SUM(E66:F66) -> 36 | F66: 36 | N66: 36
A67: ПМ.04 | B67: Организация и ведение процессов приготовления, оформления и подготовки к реализации холодных и горячих десертов, напитков сложного ассортимента с учетом потребностей различных категорий потребителей, видов и форм обслуживания | C67: Э(к)/8 | D67: =SUM( D68:D71) -> 354 | E67: =SUM( E68:E71) -> 82 | F67: =SUM(F68:F71) -> 272 | G67: =SUM(G68:G71) -> 124 | H67: =H68+H70+H71 -> 0 | I67: =SUM(I68:I71) -> 0 | J67: =SUM(J68:J71) -> 0 | K67: 0 | L67: 0 | M67: 24 | N67: 58 | O67: 154 | P67: 36
A68: МДК.04.01 | B68: Организация процессов приготовления, подготовки к реализации холодных и горячих десертов, напитков сложного ассортимента | C68: Э/8 | D68: =SUM(E68:F68) -> 72 | E68: =F68/2 -> 24 | F68: =SUM(I68:P68) -> 48 | G68: 28 | M68: 24 | N68: 24
A69: МДК.04.02 | B69: Процессы приготовления, подготовки к реализации холодных и горячих десертов, напитков сложного ассортимента | D69: =SUM(E69:F69) -> 174 | E69: =F69/2 -> 58 | F69: =SUM(I69:P69) -> 116 | G69: 96 | N69: 34 | O69: 82
A70: УП.04 | B70: Учебная практика | C70: ДЗ/8 | D70: 72 | F70: 72 | O70: 72
A71: ПП.04 | B71: Производственная практика | D71: =SUM(E71:F71) -> 36 | F71: 36 | P71: 36
A72: ПМ.05 | B72: Организация и ведение процессов приготовления, оформления и подготовки к реализации хлебобулочных, мучных кондитерских изделий сложного ассортимента с учетом потребностей различных категорий потребителей, видов и форм обслуживания | C72: Э(к)/8 | D72: =SUM( D73:D76) -> 444 | E72: =SUM(E73:E76) -> 100 | F72: =SUM(F73:F76) -> 344 | G72: =G73+G75+G76 -> 8 | H72: =H73+H75+H76 -> 0 | I72: =SUM(I73:I76) -> 0 | J72: =SUM(J73:J76) -> 0 | K72: 0 | L72: 0 | M72: 60 | N72: 64 | O72: 148 | P72: 72
A73: МДК.05.01 | B73: Организация процессов приготовления, подготовки к реализации хлебобулочных, мучных кондитерских изделий сложного ассортимента | C73: Э/7 | D73: =SUM(E73:F73) -> 90 | E73: =F73/2 -> 30 | F73: =SUM(I73:P73) -> 60 | G73: 8 | M73: 60
A74: МДК.05.02 | B74: Процессы приготовления, подготовки к реализации хлебобулочных, мучных кондитерских изделий сложного ассортимента | D74: =SUM(E74:F74) -> 246 | E74: 70 | F74: =SUM(I74:P74) -> 176 | G74: 74 | N74: 64 | O74: 112
A75: УП.05 | B75: Учебная практика | C75: ДЗ/8 | D75: =SUM(E75:F75) -> 72 | F75: 72 | O75: 36 | P75: 36
A76: ПП.05 | B76: Производственная практика | D76: =SUM(E76:F76) -> 36 | F76: 36 | P76: 36
A77: ПМ.06 | B77: Организация и контроль текущей деятельности подчиненного персонала | C77: Э(к)/8 | D77: =SUM(D78:D80) -> 234 | E77: 54 | F77: =SUM(F78:F80) -> 180 | G77: 50 | H77: 30 | I77: 0 | J77: 0 | K77: 0 | L77: 0 | M77: 0 | N77: 0 | O77: 0 | P77: 180
A78: МДК.06.01 | B78: Управление структурным подразделением организации | C78: Э/8 | D78: =SUM(E78:F78) -> 162 | E78: =F78/2 -> 54 | F78: 108 | G78: 50 | H78: 30 | P78: 108
A79: УП.06 | B79: Учебная практика | C79: ДЗ/8 | D79: =SUM(E79:F79) -> 36 | F79: 36 | P79: 36
A80: ПП.06 | B80: Производственная практика | D80: =SUM(E80:F80) -> 36 | F80: 36 | P80: 36
A81: ПМ.07 | B81: Выполнение работ по профессии Повар | C81: Э(к)/4 | D81: =SUM(D82:D84) -> 466 | E81: 100 | F81: =SUM(F82:F84) -> 366 | G81: 98 | H81: 0 | I81: 0 | J81: 0 | K81: 122 | L81: 244 | M81: 0 | N81: 0 | O81: 0 | P81: 0
A82: МДК.07.01 | B82: Технология приготовления основных блюд, закусок и напитков | C82: Э/4 | D82: =SUM(E82:F82) -> 358 | E82: 100 | F82: 258 | G82: 98 | K82: 122 | L82: 136
A83: УП.07 | B83: Учебная практика | C83: ДЗ/4 | D83: =SUM(E83:F83) -> 36 | F83: 36 | L83: 36
A84: ПП.07 | B84: Производственная практика | D84: =SUM(E84:F84) -> 72 | F84: 72 | L84: 72
B85: Дополнительный профессиональный блок
A86: ПМ.08 | B86: Приготовление, оформление и подготовка к реализации блюд карельской кухни | C86: Э(к)/7 | D86: =SUM(D87:D89) -> 171 | E86: 33 | F86: =SUM(F87:F89) -> 138 | G86: 40 | H86: 0 | I86: 0 | J86: 0 | K86: 0 | L86: 0 | M86: 0 | N86: 0 | O86: 138 | P86: 0
A87: МДК 08.01 | B87: Особенности приготовления блюд карельской кухни | C87: ДЗ/7 | D87: =SUM(E87:F87) -> 54 | E87: 18 | F87: 36 | G87: 18 | O87: 36
A88: МДК 08.02 | B88: Освение компетенций цифровой экономики | C88: ДЗ/7 | D88: =SUM(E88:F88) -> 45 | E88: 15 | F88: 30 | G88: 22 | O88: 30
A89: ПП.08 | B89: Производственная практика | C89: ДЗ/7 | D89: =SUM(E89:F89) -> 72 | F89: 72 | O89: 72
B90: Вариативная часть | D90: =D91+D92+D93+D94+D95+D96+D97 -> 402 | E90: =E91+E92+E93+E94+E95+E96+E97 -> 134 | F90: =F91+F92+F93+F95+F96+F97 -> 268 | G90: =G91+G92+G93+G94+G95+G96+G97 -> 119 | H90: =H91+H92+H93+H94+H95+H96+H97 -> 0 | I90: =SUM(I91:I97) -> 46 | J90: =SUM(J91:J97) -> 0 | K90: 98 | L90: 20 | M90: 0 | N90: 0 | O90: 68 | P90: 36
A91: ОП. 10 | B91: Мировая кухня | C91: ДЗ/4 | D91: =SUM(E91:F91) -> 54 | E91: =F91/2 -> 18 | F91: 36 | G91: 18 | P91: 36
A92: ОП. 11 | B92: Основы предпринимательской деятельности | C92: ДЗ/5 | D92: 48 | E92: 16 | F92: 32 | G92: 16 | O92: 32
A93: ОП. 12 | B93: Бизнес проектирование | C93: ДЗ/6 | D93: 54 | E93: 18 | F93: 36 | G93: 25 | O93: 36
F94: 0
A95: ОП. 13 | B95: Оборудование предприятий общественного питания | C95: Э/3 | D95: 117 | E95: 39 | F95: 78 | G95: 24 | K95: 58 | L95: 20
A96: ОП. 14 | B96: Калькуляция и учет | C96: ДЗ/1 | D96: 69 | E96: 23 | F96: 46 | G96: 20 | I96: 46
A97: ОП. 15 | B97: Творчество в профессии | C97: ДЗ/3 | D97: 60 | E97: 20 | F97: 40 | G97: 16 | K97: 40
A98: Всего | D98: =D13 -> 6489 | E98: 1809 | F98: =F13 -> 5940 | G98: 1824 | H98: 60 | I98: 612 | J98: 864 | K98: 612 | L98: 864 | M98: 612 | N98: 864 | O98: 612 | P98: 900
A99: ПДП | B99: Преддипломная практика (недель) | F99: 144 | P99: 144
A100: ПА | B100: Промежуточная аттестация | F100: =SUM(I100:P100) -> 180 | J100: 36 | K100: 18 | L100: 36 | M100: 18 | N100: 36 | O100: 18 | P100: 18
A101: ГИА | B101: Государственная итоговая аттестация | F101: 216 | P101: 216
A102: Консультации 4 часа на одного обучающегося на каждый учебный год Государственная итоговая аттестация 1. Программа базовой подготовки 1.1. Дипломная работа Выполнение дипломной работы с 20 мая 2027 г. по 14 июня 2027 г. (всего 4 нед.) Защита дипломной работы с 17 июня 2027 по 30 июня 2027 г. (всего 2 нед.) | F102: Всего | G102: дисциплин и МДК | I102: =I14+I31+I37+I41+I53+I58+I63+I68+I73+I78+I82+I90 -> 612 | J102: 828 | K102: 594 | L102: 494 | M102: 276 | N102: 286 | O102: 154 | P102: 342
G104: учебной практики | I104: =I79+I75+I70+I65+I60+I55+I83 -> 0 | J104: =J79+J75+J70+J65+J60+J55+J83 -> 0 | K104: =K79+K75+K70+K65+K60+K55+ K83 -> 0 | L104: =L79+L75+L70+L65+L60+L55+L83 -> 180 | M104: =M79+M75+M70+M65+M60+M55+M83 -> 108 | N104: =N79+N65+N60+N55+N83 -> 144 | O104: =O79+O75+O70+O65+O60+O55+J83 -> 108 | P104: =P79+P75+P70+P65+P60+P55+K83 -> 72
G105: производст. практики | I105: =I84+I80+I76+I71+I66+I61+I56 -> 0 | J105: =J84+J80+J76+J71+J66+J61+J56 -> 0 | K105: =K80+K76+K71+K66+K61+K56+K84 -> 0 | L105: =L84+L80+L76+L71+L66+L61+L56 -> 72 | M105: =M84+M80+M76+M71+M66+M61+M56 -> 36 | N105: =N84+N80+N66+N61+N56 -> 72 | O105: =J84+O80+O76+O71+O66+O61+O56 -> 0 | P105: =K84+P80+P76+P71+P66+P61+P56 -> 108
G106: экзаменов | I106: 0 | J106: 4 | K106: 3 | L106: 2 | M106: 3 | N106: 4 | O106: 2 | P106: 5
G107: дифф. зачетов | I107: 2 | J107: 8 | K107: 6 | L107: 4 | M107: 3 | N107: 5 | O107: 3 | P107: 5
G108: зачетов | I108: 0 | J108: 0 | K108: 0 | L108: 0 | M108: 0 | N108: 0 | O108: 0 | P108: 0
B110: Согласовано:
B112: Заместитель директора | F112: М.Н. Романова
B113: Заместитель директора по УПР | F113: В.О. Пикалёв
B114: Методист | F114: С.С. Кульгова
